[Event "1st Semana Santa Torrevieja 2022"]
[Site "Torrevieja Alicante"]
[Date "2022.04.17"]
[Round "9.2"]
[White "Iturrizaga Bonelli, Eduardo"]
[Black "Yuffa, Daniil"]
[Result "1-0"]
[ECO "A20"]
[WhiteElo "2595"]
[BlackElo "2576"]
[Annotator "TA"]
[PlyCount "61"]
[EventDate "2022.04.12"]
[EventType "swiss"]
[EventCountry "ESP"]
[SourceTitle "playchess.com"]
[Source "ChessBase"]
[SourceQuality "1"]
[TimeControl "5400+30"]

{[%evp 10,61,23,0,0,0,0,0,0,0,0,-23,0,0,0,0,0,0,0,0,72,63,108,98,126,91,95,89,70,67,160,193,271,249,761,761,761,752,729,706,1385,1423,1598,1589,29969,29969,6081,5397,29994,29991,29996,29997,29997,58]} 1. c4 {[%emt 1:31:00]} e5 {[%emt 0:02:33][%cal Be7e5,Be5e4][%mdl 32]} 2. g3 {[%emt 0:00:00]} c6 {[%emt 0:00:18]} 3. Nf3 {[%emt 0:00:00]} e4 {[%emt 0:00:24]} 4. Nd4 {[%emt 0:00:00]} d5 {[%emt 0:00:03]} 5. cxd5 {[%emt 0:00:00]} Qxd5 {[%emt 0:00:04]} 6. e3 {[%emt 0:00:00]} Bc5 {[%emt 0:00:24] A20: English Opening: 1...e5.} 7. Nc3 {[%emt 0:00:00]} Qe5 {[%emt 0:00:06]} 8. f3 $5 {[%emt 0:00:00][%mdl 4] [#] Leaves trodden paths.} Bxd4 $146 {[%emt 0:04:12] The position is equal.} ({Predecessor:} 8... Nf6 9. fxe4 Bxd4 10. exd4 Qxd4 11. d3 O-O 12. Qe2 Re8 13. h3 Nd5 14. Qf2 Qb6 {0-1 (22) Saarikoski,K (2239)-Arppi,H (2306) ICCF email 2021}) 9. exd4 {[%emt 0:00:00]} Qxd4 {[%emt 0:00:14]} 10. Qe2 {[%emt 0:00:00]} Nf6 {[%emt 0:01:00]} (10... Ne7 $5 {[%cal Re4f3]}) 11. fxe4 {[%emt 0:00:00]} Na6 {[%emt 0:03:58]} 12. d3 $1 {[%emt 0:00:00]} Bg4 {[%emt 0:10:20]} 13. Be3 {[%emt 0:00:00]} Qd7 {[%emt 0:00:35]} 14. Qd2 {[%emt 0:00:00]} O-O-O {[%emt 0:12:47]} (14... Bf3 $11 15. Rg1 Bg4) 15. h3 $1 $16 {[%emt 0:00:00]} Bf3 {[%emt 0:07:51] [#]} 16. Rh2 {[%emt 0:00:00]} Nb4 {[%emt 0:01:30][%cal Rb4d3]} 17. Rf2 {[%emt 0:00:00]} Bh5 {[%emt 0:06:55][%cal Rb4d3]} 18. g4 $36 {[%emt 0:00:00][%mdl 2048] White has strong initiative.} Bg6 {[%emt 0:00:04][%cal Rb4d3]} 19. Rd1 {[%emt 0:00:00] a3 is the strong threat.} ({But not} 19. Bxa7 Nxd3+ 20. Bxd3 Qxd3 $15) (19. O-O-O $5 {[%cal Ra2a3]}) 19... Qc7 {[%emt 0:11:11]} ({Black should play} 19... Kb8 $1 $14) 20. a3 {[%emt 0:00:00]} ({Stronger than} 20. Bxa7 b6 21. Na4 {[#]} (21. g5 Nd7 $17) 21... Nxd3+ $1 22. Bxd3 Qxa7 $17) 20... Nxd3+ {[%emt 0:03:09]} (20... Na6 {keeps fighting.}) 21. Bxd3 $18 {[%emt 0:00:00] Hoping for Bf4.} Qg3 {[%emt 0:00:05] [#]} (21... Nxe4 22. Nxe4 Bxe4) 22. Nb5 $1 {[%emt 0:00:00][%mdl 512]} b6 {[%emt 0:02:49]} 23. Nxa7+ {[%emt 0:02:08]} Kb7 {[%emt 0:00:05] [#]} 24. Nxc6 $1 {[%emt 0:00:04]} Kxc6 {[%emt 0:03:47]} (24... Rd6 25. Nb4) 25. Bf4 {[%emt 0:00:42] Intending Qc3+ and mate.} Qxd3 {[%emt 0:02:02]} 26. Qc1+ {[%emt 0:00:11]} Kb5 {[%emt 0:00:13]} 27. Rxd3 {[%emt 0:00:05]} Rxd3 {[%emt 0:00:03]} 28. a4+ {[%emt 0:00:52]} Kb4 {[%emt 0:00:09]} 29. Bd6+ {[%emt 0:00:38] White mates.} Rxd6 {[%emt 0:00:08]} 30. Qc3+ {[%emt 0:00:03]} Kxa4 {[%emt 0:00:06]} 31. Qc4+ {[%emt 0:00:04] Weighted Error Value: White=0.05 (flawless) /Black=0.71} 1-0

[Event "1st Semana Santa Torrevieja 2022"]
[Site "Torrevieja Alicante"]
[Date "2022.04.17"]
[Round "9.3"]
[White "Grigoryan, Karen H."]
[Black "Gomez Ledo, Roberto Carlos"]
[Result "1-0"]
[ECO "C54"]
[WhiteElo "2636"]
[BlackElo "2471"]
[Annotator "TA"]
[PlyCount "117"]
[EventDate "2022.04.12"]
[EventType "swiss"]
[EventCountry "ESP"]
[SourceTitle "playchess.com"]
[Source "ChessBase"]
[SourceQuality "1"]
[TimeControl "5400+30"]

{[%evp 17,117,-7,9,0,-6,0,3,7,12,0,20,0,0,9,12,2,36,30,33,25,31,22,18,-25,0,7,27,-24,-29,-48,-43,-42,-39,-47,-45,-56,-38,-38,-18,-41,-21,-29,0,-4,0,0,0,0,18,0,18,-156,22,22,97,79,104,101,306,300,322,232,344,337,329,317,297,296,297,277,459,447,437,427,870,870,870,861,829,822,798,721,699,637,833,819,757,704,745,681,698,650,789,785,774,745,29974,29975,29970,29975,29992,29993]} 1. e4 {[%emt 0:01:03]} e5 {[%emt 0:02:32]} 2. Nf3 {[%emt 0:00:10]} Nc6 {[%emt 0:00:15]} 3. Bc4 {[%emt 0:00:41]} Bc5 {[%emt 0:00:20]} 4. c3 {[%emt 0:00:24]} Nf6 {[%emt 0:00:41]} 5. d3 {[%emt 0:00:08]} a6 {[%emt 0:00:50]} 6. O-O {[%emt 0:00:52]} d6 {[%emt 0:00:41]} 7. Bb3 {[%emt 0:00:27]} Ba7 {[%emt 0:00:28]} 8. h3 {[%emt 0:03:50]} h6 {[%emt 0:01:47]} 9. Be3 {[%emt 0:09:59] is the legacy move (9.Re1).} O-O {[%emt 0:02:32]} 10. Bxa7 {[%emt 0:03:01] C54: Giuoco Piano: 4 c3 Nf6, main lines with 5 d4 and 5 d3.} Rxa7 {[%emt 0:00:32]} 11. Nbd2 {[%emt 0:01:13][%cal Bb1d2,Bd2f1,Bf1g3][%mdl 32]} Ne7 {[%emt 0:08:05][%cal Bc6e7,Be7g6,Bg6f4,Bf4e6,Be6c5][%mdl 32]} 12. Re1 {[%emt 0:01:16] The position is equal.} Ng6 {[%emt 0:02:32]} 13. Nf1 {[%emt 0:00:53]} Ra8 {[%emt 0:03:19]} 14. Ng3 {[%emt 0:02:11] [#]} Nh7 $146 {[%emt 0:05:24]} ({Predecessor:} 14... Kh7 15. d4 Qe8 16. Bc2 Nf4 17. Qd2 g6 18. Rad1 Rg8 19. c4 Qe7 {1-0 (34) Almasi,I (2350)-Hohler,P (2295) Budapest 1992}) 15. d4 {[%emt 0:01:24]} Ng5 {[%emt 0:02:37]} 16. Re3 {[%emt 0:16:03]} Nf4 {[%emt 0:12:18]} 17. dxe5 {[%emt 0:06:20] And now Nxg5 would win.} Nxf3+ {[%emt 0:02:29]} 18. Qxf3 {[%emt 0:00:07]} dxe5 {[%emt 0:00:15]} 19. Rd1 {[%emt 0:03:16]} Qg5 {[%emt 0:04:05]} 20. Kh2 {[%emt 0:03:13]} (20. Nf5 $5) 20... Rb8 {[%emt 0:07:24]} (20... a5 {is more complex.} 21. Bc2 g6 22. Ne2 Be6) 21. Ne2 {[%emt 0:02:37]} Ne6 {[%emt 0:08:02]} 22. g3 {[%emt 0:03:08]} ({Better is} 22. Qf5) 22... Qe7 {[%emt 0:06:23]} 23. Qg2 {[%emt 0:03:21]} Nc5 {[%emt 0:01:10]} 24. Bc2 {[%emt 0:00:53]} Be6 {[%emt 0:00:18]} 25. Nc1 {[%emt 0:07:00]} Rfd8 {[%emt 0:01:44]} 26. Ree1 {[%emt 0:03:55]} Rxd1 {[%emt 0:02:14]} 27. Rxd1 {[%emt 0:00:14]} Rd8 {[%emt 0:00:08] Threatens to win with ...Rxd1.} 28. Qf1 {[%emt 0:01:12]} Rxd1 {[%emt 0:08:52]} 29. Qxd1 {[%emt 0:00:02]} Kf8 {[%emt 0:05:40]} 30. b4 {[%emt 0:00:44]} Nd7 {[%emt 0:00:17]} 31. Bb3 {[%emt 0:00:06]} g6 {[%emt 0:01:57]} 32. Nd3 {[%emt 0:02:00]} f5 {[%emt 0:00:24]} 33. Qf3 {[%emt 0:02:58]} c6 {[%emt 0:01:39]} 34. exf5 $2 {[%emt 0:01:38] [#]} (34. Qe2 $11) 34... gxf5 $2 {[%emt 0:00:06]} (34... Bxb3 $1 $17 35. fxg6+ (35. axb3 $2 e4 $17) 35... Nf6) 35. Qe3 $11 {[%emt 0:00:29]} Kg7 {[%emt 0:02:49]} (35... Qf6 $1 $11 {remains equal.}) 36. Nc5 $16 {[%emt 0:02:22]} Bxb3 {[%emt 0:01:25]} 37. Nxd7 {[%emt 0:00:37][%mdl 64] Deflection} Qxd7 $2 {[%emt 0:01:23] This costs Black the game.} (37... Bxa2 $16 {keeps fighting.} 38. Nxe5 Kf6) 38. Qxe5+ $18 {[%emt 0:00:18]} Kg6 {[%emt 0:00:34]} 39. axb3 {[%emt 0:00:07][%mdl 4096] Endgame KQ-KQ} Qf7 {[%emt 0:02:00]} (39... Qd1 $142 40. Qe6+ Kg7) 40. c4 {[%emt 0:00:58]} Qd7 {[%emt 0:00:31]} 41. Kg2 {[%emt 0:00:19]} Kf7 {[%emt 0:00:25]} 42. h4 {[%emt 0:02:10][%cal Bh3h4,Bh4h5][%mdl 32]} Kg6 {[%emt 0:01:08]} 43. Qe2 {[%emt 0:04:30]} Qd6 $2 {[#]} (43... Kh7 {was called for.} 44. h5 Kg8) 44. Qe8+ {[%emt 0:14:21]} Kg7 {[%emt 0:01:42]} 45. h5 {[%emt 0:00:00]} b5 {[%emt 0:01:13]} (45... b6 $142 46. c5 bxc5 47. bxc5 Qxc5 48. Qg6+ Kh8 49. Qxh6+ Kg8 50. Qg6+ Kh8 51. Qh6+ Kg8 52. Qg5+ Kh7 53. Qg6+ Kh8 54. Qf6+ Kh7 55. Qf7+ Kh8) 46. c5 {[%emt 0:00:00]} Qf6 {[%emt 0:00:41]} 47. Qd7+ {[%emt 0:00:00]} Kf8 {[%emt 0:00:19]} 48. Qc8+ {[%emt 0:00:00]} Ke7 {[%emt 0:00:18]} 49. Qb7+ {[%emt 0:00:00]} Kd8 {[%emt 0:00:19]} 50. Qxa6 {[%emt 0:00:00]} Qe6 {[%emt 0:00:28]} 51. Qa1 {[%emt 0:00:00]} Qe4+ {[%emt 0:01:19]} 52. Kg1 {[%emt 0:00:00]} Qe6 {[%emt 0:01:22]} 53. Qc3 {[%emt 0:00:00]} Kc8 {[%emt 0:00:28]} 54. Qd3 {[%emt 0:00:00]} Kb7 {[%emt 0:00:10]} 55. Qe3 {[%emt 0:00:00]} Qf6 {[%emt 0:00:41]} 56. Kg2 {[%emt 0:00:00]} Ka6 {[%emt 0:00:39]} 57. Qe8 {[%emt 0:00:00][%cal Re8a8] White mates.} Kb7 {[%emt 0:00:14]} 58. Qd7+ {[%emt 0:00:00]} Ka6 {[%emt 0:00:07]} 59. Qc7 {[%emt 0:00:00] Weighted Error Value: White=0.18 (very precise) /Black=0.33} 1-0

[Event "1st Semana Santa Torrevieja 2022"]
[Site "Torrevieja Alicante"]
[Date "2022.04.17"]
[Round "9.4"]
[White "Sochacki, Christophe"]
[Black "Dardha, Daniel"]
[Result "1/2-1/2"]
[ECO "D37"]
[WhiteElo "2485"]
[BlackElo "2541"]
[Annotator "TA"]
[PlyCount "78"]
[EventDate "2022.04.12"]
[EventType "swiss"]
[EventCountry "ESP"]
[SourceTitle "playchess.com"]
[Source "ChessBase"]
[SourceQuality "1"]
[TimeControl "5400+30"]

{[%evp 9,78,25,37,32,31,41,27,17,15,11,33,10,25,7,3,10,6,1,16,6,11,11,22,11,27,20,17,18,21,10,18,10,20,0,4,2,10,0,0,-4,0,-4,28,28,29,35,47,35,40,33,52,19,25,0,0,0,0,0,0,0,0,0,0,0,0,0,0,0,0,0,0]} 1. d4 {[%emt 0:08:01]} d5 {[%emt 0:01:36]} 2. c4 {[%emt 0:00:06]} e6 {[%emt 0:00:10]} 3. Nc3 {[%emt 0:00:08]} h6 {[%emt 0:00:26]} 4. Nf3 {[%emt 0:05:39]} Nf6 {[%emt 0:00:10]} 5. Bf4 {[%emt 0:00:06]} Bd6 {[%emt 0:00:10]} 6. Bxd6 {[%emt 0:03:00] D37: Queen's Gambit Declined: 5 Bf4.} Qxd6 $1 {[%emt 0:00:08] 6...Qxd6 scores better than 6...cxd6.} 7. e3 {[%emt 0:00:08]} O-O {[%emt 0:00:34]} 8. Be2 {[%emt 0:03:23] [#] White has an edge.} Qe7 $146 {[%emt 0:07:47]} ({Predecessor:} 8... dxc4 9. Bxc4 c5 10. O-O Nc6 11. Rc1 Rd8 12. dxc5 Qxc5 13. Qe2 Qe7 14. Rfd1 Bd7 {0-1 (87) Gagunashvili,M (2573)-Nihal,S (2662) Warsaw 2021}) 9. O-O {[%emt 0:00:57]} Rd8 {[%emt 0:01:10]} 10. Qc2 {[%emt 0:00:21]} dxc4 {[%emt 0:02:36]} 11. Bxc4 {[%emt 0:01:14]} c5 {[%emt 0:00:14]} 12. dxc5 {[%emt 0:02:07]} Qxc5 {[%emt 0:01:51] [#]} 13. Rfd1 $1 {[%emt 0:00:52]} Bd7 {[%emt 0:02:49]} 14. Ne4 {[%emt 0:01:22]} Nxe4 {[%emt 0:00:28]} 15. Qxe4 {[%emt 0:00:03]} Nc6 {[%emt 0:00:29]} 16. a3 {[%emt 0:09:48]} a5 {[%emt 0:06:55]} 17. h3 {[%emt 0:05:57]} Be8 {[%emt 0:01:27]} 18. Bd3 {[%emt 0:01:51] [#] Black must now prevent Qh7+.} g6 {[%emt 0:00:36]} 19. Rac1 {[%emt 0:02:19]} Qe7 {[%emt 0:02:03]} 20. Qf4 {[%emt 0:08:35]} Kg7 {[%emt 0:00:28]} 21. Be4 {[%emt 0:00:11]} Rac8 {[%emt 0:07:29]} 22. Rxd8 {[%emt 0:12:18]} Rxd8 {[%emt 0:01:35]} 23. Bxc6 {[%emt 0:00:23]} Bxc6 {[%emt 0:01:09]} 24. Ne5 {[%emt 0:05:58]} Be8 $1 {[%emt 0:08:22]} 25. Ng4 $132 {[%emt 0:02:02][%cal Be5g4,Bg4h2,Bh2f3][%mdl 2080] White is not holding back} Qg5 {[%emt 0:06:54]} (25... h5 $5 {[%cal Rh5g4]} 26. Qh6+ (26. Rc7 Rd1+ 27. Kh2 Qd6 $11) 26... Kg8 $11) 26. Qc4 {[%emt 0:02:58] Qc3+ is the strong threat.} Qe7 {[%emt 0:01:58]} 27. Qc3+ {[%emt 0:01:29]} f6 {[%emt 0:00:06]} 28. Qxa5 {[%emt 0:00:07]} h5 $1 {[%emt 0:00:50]} 29. Nh2 {[%emt 0:00:40]} Bc6 {[%emt 0:01:27]} 30. Nf3 {[%emt 0:01:58] aiming for Nd4.} e5 {[%emt 0:00:45] Prevents Nd4.} 31. b4 {[%emt 0:00:31]} Rd5 $1 {[%emt 0:02:55] Inhibits b5. The position is equal.} 32. Qb6 {[%emt 0:07:24]} Qd6 {[%emt 0:03:16]} 33. a4 {[%emt 0:02:37]} Rd1+ {[%emt 0:01:17]} 34. Rxd1 {[%emt 0:00:01]} Qxd1+ {[%emt 0:00:07]} 35. Kh2 {[%emt 0:00:01]} Bxf3 {[%emt 0:01:21]} 36. gxf3 {[%emt 0:00:20]} Qxf3 {[%emt 0:00:15]} 37. Kg1 {[%emt 0:00:10]} Qd1+ {[%emt 0:07:00]} 38. Kh2 {[%emt 0:00:13]} Qf3 {[%emt 0:00:30]} 39. Kg1 {[%emt 0:00:01]} Qd1+ {[%emt 0:00:56] Weighted Error Value: White=0.06 (flawless) /Black=0.03 (flawless)} 1/2-1/2

[Event "1st Semana Santa Torrevieja 2022"]
[Site "Torrevieja Alicante"]
[Date "2022.04.17"]
[Round "9.5"]
[White "Chatalbashev, Boris"]
[Black "Larino Nieto, David"]
[Result "1/2-1/2"]
[ECO "B00"]
[WhiteElo "2515"]
[BlackElo "2440"]
[Annotator "TA"]
[PlyCount "166"]
[EventDate "2022.04.12"]
[EventType "swiss"]
[EventCountry "ESP"]
[SourceTitle "playchess.com"]
[Source "ChessBase"]
[SourceQuality "1"]
[TimeControl "5400+30"]

{[%evp 15,166,47,47,47,40,52,49,63,44,47,50,49,40,41,52,61,66,34,57,12,86,67,160,27,29,24,155,120,90,19,40,0,0,0,0,-13,-18,-59,-62,-97,-1,-2,0,0,0,0,0,-170,-170,-170,-153,-159,-140,-152,-126,-201,-77,-77,-77,-77,-55,-55,-55,-55,-55,-55,-55,-56,-56,-67,-70,-66,-55,-55,-55,-55,-17,-17,-8,-8,-8,-8,-8,-8,-8,-36,-8,-8,-8,-8,-8,-8,-8,-8,-8,-8,-8,-8,-8,-8,-8,-8,-8,-8,-8,-14,-8,-8,-8,-8,-8,-277,-229,-1133,-1033,-854,-161,-179,-18,-29943,-12851,-6605,-6574,-5428,0,-5065,-3402,-1616,-520,-1522,-1457,-876,-8,-8,-8,-8,-8,-8,-8,-8,-8,-8,-8,-8,-8,-8,-8,-8,-8,-8,-8,-8,-8]} 1. d4 {[%emt 0:00:02]} b6 {[%emt 0:00:07]} 2. e4 {[%emt 0:00:55]} Bb7 {[%emt 0:00:43]} 3. Bd3 {[%emt 0:00:07]} e6 {[%emt 0:00:36]} 4. Nf3 {[%emt 0:00:23]} c5 {[%emt 0:02:33]} 5. c3 {[%emt 0:00:37]} Nf6 {[%emt 0:02:52]} 6. Qe2 {[%emt 0:00:56]} cxd4 {[%emt 0:01:53]} 7. cxd4 {[%emt 0:00:10]} Bb4+ {[%emt 0:00:14]} 8. Nc3 {[%emt 0:00:41]} d5 $1 {[%emt 0:00:43]} 9. e5 {[%emt 0:01:25]} Ne4 $1 {[%emt 0:02:46]} 10. O-O {[%emt 0:00:11]} Nxc3 {[%emt 0:00:07]} 11. bxc3 {[%emt 0:00:07]} Be7 $1 {[%emt 0:00:04]} 12. h4 {[%emt 0:03:23]} Qc8 {[%emt 0:05:09]} 13. a4 {[%emt 0:08:15]} Ba6 {[%emt 0:11:35]} 14. Bb5+ {[%emt 0:06:53]} Bxb5 {[%emt 0:00:08]} 15. axb5 {[%emt 0:00:05]} (15. Qxb5+ Nc6 $11) 15... a5 {[%emt 0:00:06]} 16. Bg5 {[%emt 0:10:01]} Ra7 {[%emt 0:02:27]} 17. Rfc1 {[%emt 0:03:50]} O-O {[%emt 0:06:55]} (17... Bxg5 $11 18. hxg5 (18. Nxg5 Rc7 $11) 18... Rc7) 18. c4 $16 {[%emt 0:05:06]} Bxg5 {[%emt 0:00:49]} ({Black should play} 18... dxc4 $1 $14 19. Rxc4 (19. Qxc4 Qxc4 20. Rxc4 h6 $11) 19... Qd8) 19. hxg5 {[%emt 0:04:28]} (19. Nxg5 $16 h6 20. cxd5 $1) 19... Rc7 $11 {[%emt 0:03:45]} 20. Nd2 {[%emt 0:01:03]} Rd8 {[%emt 0:01:17]} (20... Nd7 $11 {remains equal.}) 21. Rc3 {[%emt 0:07:16]} dxc4 {[%emt 0:07:41]} 22. Rxc4 {[%emt 0:09:38]} (22. Nxc4 $16 Nd7 23. Nd6 Rxc3 24. Nxc8 Rdxc8 25. f4) 22... Rxc4 $11 {[%emt 0:01:48]} 23. Nxc4 {[%emt 0:00:13]} Rxd4 {[%emt 0:03:24]} 24. Nxb6 {[%emt 0:02:36]} Qc7 {[%emt 0:05:06]} 25. Na4 {[%emt 0:00:49]} (25. Na8 $5 {[%cal Ra8c7]} Qc3 26. Qf1 $15) 25... Nd7 {[%emt 0:00:11]} 26. Qe1 {[%emt 0:08:14]} g6 {[%emt 0:05:29]} (26... Nxe5 27. b6 Qd6 28. b7 $16) 27. Nc3 {[%emt 0:04:37]} Nc5 {[%emt 0:05:51]} (27... Nxe5 $6 28. b6 Qb8 29. Rxa5 $11) ({Black should try} 27... Kg7 $17 28. f3 Nc5) 28. Rb1 $11 {[%emt 0:04:06]} Nd3 {[%emt 0:06:35]} 29. b6 {[%emt 0:01:27]} Qxb6 $1 {[%emt 0:00:08]} 30. Qe3 {[%emt 0:00:30]} Qc5 {[%emt 0:00:40]} 31. Rb8+ $2 {[%emt 0:11:01]} (31. Ne4 $1 $11 {and White is okay.} Rxe4 32. Qxe4 Qxf2+ 33. Kh2) 31... Kg7 $19 {[%emt 0:00:04]} 32. Ne2 {[%emt 0:01:16]} ({Not} 32. Qh3 $2 h5 33. gxh6+ Kh7 $19) 32... Rb4 {[%emt 0:01:46]} 33. Qxc5 {[%emt 0:00:15]} Nxc5 {[%emt 0:00:01]} 34. Ra8 {[%emt 0:00:08]} Nd3 {[%emt 0:02:04]} 35. Nc3 {[%emt 0:02:22]} (35. Rxa5 $17 Rb1+ 36. Kh2) 35... a4 {[%emt 0:04:08]} ({Stronger than} 35... Nxe5 36. Rxa5 Ng4 37. Kf1 $17) (35... Rg4 $1 $19 {and Black stays clearly on top.} 36. Rxa5 Rxg5) 36. Rxa4 $17 {[%emt 0:01:07]} Rxa4 {[%emt 0:00:27]} 37. Nxa4 {[%emt 0:00:02]} Nxe5 {[%emt 0:00:09]} 38. Nc5 {[%emt 0:00:15]} h6 {[%emt 0:02:52]} 39. gxh6+ {[%emt 0:00:15]} Kxh6 {[%emt 0:00:02]} 40. f3 {[%emt 0:00:07]} Nc4 {[%emt 0:00:52]} 41. Kf2 {[%emt 0:00:08]} Kg5 {[%emt 0:00:19]} 42. g3 {[%emt 0:01:43]} Kf5 {[%emt 0:00:46]} 43. Nd3 {[%emt 0:01:03]} g5 {[%emt 0:02:17]} 44. g4+ {[%emt 0:00:42]} Kf6 {[%emt 0:00:19]} 45. Kg3 {[%emt 0:00:20]} Ke7 {[%emt 0:01:07]} 46. f4 {[%emt 0:01:19]} Kf6 {[%emt 0:01:47]} 47. Nc5 {[%emt 0:00:42]} Kg6 {[%emt 0:04:53]} 48. Ne4 $1 {[%emt 0:00:49]} gxf4+ {[%emt 0:00:35]} 49. Kxf4 {[%emt 0:00:02]} f6 {[%emt 0:00:41]} 50. Kf3 {[%emt 0:01:27]} e5 {[%emt 0:00:30]} 51. Kg3 {[%emt 0:00:33]} Kf7 {[%emt 0:02:53]} 52. Kf3 {[%emt 0:00:51]} Ke7 {[%emt 0:00:12]} 53. Kg3 {[%emt 0:00:16]} Nd6 {[%emt 0:00:20]} 54. Nc5 {[%emt 0:00:34]} Nf7 {[%emt 0:00:29]} 55. Kf3 $1 {[%emt 0:00:02]} Ng5+ {[%emt 0:00:24]} 56. Ke3 {[%emt 0:00:13]} Kd6 {[%emt 0:00:13]} 57. Na4 {[%emt 0:00:12]} Kd5 {[%emt 0:01:56]} 58. Nc3+ {[%emt 0:00:01]} Ke6 {[%emt 0:00:16]} 59. Ne2 {[%emt 0:00:45]} Nf7 {[%emt 0:00:26]} 60. Ng1 {[%emt 0:00:43]} Nd6 {[%emt 0:00:27]} 61. Nf3 {[%emt 0:00:29]} Kd5 {[%emt 0:02:40]} 62. g5 {[%emt 0:00:51]} f5 {[%emt 0:00:11]} 63. g6 $2 {[%emt 0:00:08][%mdl 8192] [#]} (63. Nh4 $11 {and White has nothing to worry.}) 63... Ne8 $1 $19 {[%emt 0:00:25]} 64. Ng5 $2 {[%emt 0:00:22]} (64. Ne1) 64... Ng7 $19 {[%emt 0:00:09]} 65. Nh7 {[%emt 0:01:09]} Nh5 $2 {[%emt 0:01:35]} (65... Kd6 {And now ...Ke7 would win.} 66. Ng5 Ke7) 66. Ng5 $19 {[%emt 0:01:08] [#]} e4 $2 {[%emt 0:00:10]} ({Better is} 66... Kd6 $1 $19 {[%cal Rd6e7] Hoping for ...Ke7.} 67. Nf3 Kd5) 67. Nf7 $2 {[%emt 0:01:29][%mdl 8192]} (67. Kf2 $11 f4 68. Kg2) 67... f4+ {[%emt 0:00:13]} 68. Kf2 {[%emt 0:00:04]} Ke6 {[%emt 0:00:40]} 69. Kg2 {[%emt 0:00:32]} Kd5 {[%emt 0:01:43]} 70. Kf2 {[%emt 0:00:28]} Kd4 {[%emt 0:00:17]} 71. Ke2 {[%emt 0:00:37]} Ng3+ {[%emt 0:01:05]} (71... Ng7 $142 72. Kf2 Kd5) 72. Kf2 {[%emt 0:00:27]} (72. Kd2 $142 e3+ 73. Kc2) 72... Nf5 $19 {[%emt 0:00:48]} 73. Nd6 {[%emt 0:00:37]} e3+ $2 {[%emt 0:00:36]} ({Weaker is} 73... Nxd6 74. g7 $18) (73... Ng7 $19 {...Ke5 is the strong threat.} 74. Nb7 Kd5) 74. Ke2 $11 {[%emt 0:00:40]} Ng7 {[%emt 0:01:24]} (74... Nxd6 $2 75. g7 $18) 75. Nf7 {[%emt 0:00:28]} Ke4 {[%emt 0:00:21]} 76. Nd6+ {[%emt 0:00:07]} Kd5 {[%emt 0:00:20]} 77. Nb5 {[%emt 0:00:21]} Ke5 {[%emt 0:00:16]} 78. Nc3 {[%emt 0:00:31]} Ne6 {[%emt 0:00:15]} (78... Kd4 $5 79. Nb5+ Ke4 80. Nc3+ Kf5 $11) 79. Kf3 $1 {[%emt 0:00:22]} Kf5 {[%emt 0:00:54]} 80. g7 {[%emt 0:00:44]} Nxg7 {[%emt 0:00:20]} 81. Nd5 {[%emt 0:00:01]} Ne6 {[%emt 0:00:43]} 82. Nxf4 {[%emt 0:00:31]} Nxf4 {[%emt 0:00:04]} 83. Kxe3 {[%emt 0:02:37]} Ke5 {[%emt 0:01:54]} 1/2-1/2

[Event "1st Semana Santa Torrevieja 2022"]
[Site "Torrevieja Alicante"]
[Date "2022.04.17"]
[Round "9.6"]
[White "Garrido Outon, Alex"]
[Black "Nasuta, Grzegorz"]
[Result "1/2-1/2"]
[ECO "C78"]
[WhiteElo "2426"]
[BlackElo "2530"]
[Annotator "TA"]
[PlyCount "68"]
[EventDate "2022.04.12"]
[EventType "swiss"]
[EventCountry "ESP"]
[SourceTitle "playchess.com"]
[Source "ChessBase"]
[SourceQuality "1"]
[TimeControl "5400+30"]

{[%evp 16,68,39,39,35,35,33,31,31,35,64,39,80,21,4,13,0,0,35,36,61,51,51,53,143,135,143,136,150,148,179,197,240,33,85,0,0,0,0,0,0,0,0,0,0,0,0,0,0,0,0,0,0,0,0]} 1. e4 {[%emt 0:00:03]} e5 {[%emt 0:00:26]} 2. Nf3 {[%emt 0:00:11]} Nc6 {[%emt 0:00:06]} 3. Bb5 {[%emt 0:00:07][%cal Bf1b5,Bb5a4,Ba4b3][%mdl 32]} a6 {[%emt 0:00:04]} 4. Ba4 {[%emt 0:00:07]} Nf6 {[%emt 0:00:04]} 5. O-O {[%emt 0:00:14]} b5 {[%emt 0:00:04]} 6. Bb3 {[%emt 0:00:06]} Bc5 {[%emt 0:00:05]} 7. a4 {[%emt 0:02:25]} Bb7 {[%emt 0:00:26]} 8. d3 {[%emt 0:01:30]} O-O {[%emt 0:00:30]} 9. Bg5 {[%emt 0:01:18]} h6 {[%emt 0:00:16] C78: Ruy Lopez: Archangelsk and Möller Defences.} 10. Bh4 {[%emt 0:00:23] 10.axb5 is not played anymore.} g5 {[%emt 0:00:39] 10...Be7 is the hot move.} 11. Bg3 {[%emt 0:00:06]} d6 {[%emt 0:00:08] White is slightly better.} 12. c3 {[%emt 0:03:12]} Ne7 {[%emt 0:01:20]} 13. Na3 {[%emt 0:05:44]} Ng6 {[%emt 0:06:49] [#]} 14. axb5 $146 {[%emt 0:04:33]} (14. Nc2 $16) ({Predecessor:} 14. Nc2 Kh7 15. Ne3 bxa4 16. Rxa4 Bxe3 17. fxe3 Kg7 18. Nd2 h5 19. Qe2 h4 20. Be1 {0-1 (68) Vovk,A (2605)-Bachmann,A (2575) Cappelle la Grande 2014}) 14... axb5 $11 {[%emt 0:00:21]} 15. Nxb5 {[%emt 0:01:05]} Rxa1 $1 {[%emt 0:04:04]} 16. Qxa1 {[%emt 0:00:01]} Qd7 {[%emt 0:30:43]} 17. Na3 {[%emt 0:11:17]} h5 {[%emt 0:00:48]} 18. Qc1 $1 {[%emt 0:03:29]} (18. Nxg5 h4 19. Bxh4 Nxh4 $17) 18... Nh7 {[%emt 0:13:06]} 19. h3 {[%emt 0:02:55]} ({Much worse is} 19. Nxg5 h4 $17) 19... Qe7 {[%emt 0:12:03]} (19... h4 $14 20. Bh2 g4 21. hxg4 Qxg4) 20. Nc4 $16 {[%emt 1:01:44]} Qf6 {[%emt 0:06:33]} 21. Qd2 {[%emt 0:00:00]} Nf4 {[%emt 0:14:03]} 22. Bxf4 {[%emt 0:00:00]} gxf4 {[%emt 0:00:10]} 23. d4 {[%emt 0:00:00]} Bxe4 {[%emt 0:00:31]} 24. dxe5 $2 {[%emt 0:00:00]} (24. dxc5 $18 Bxf3 25. gxf3) 24... Qf5 $1 $14 {[%emt 0:00:53] [#] Hoping for ...Bxf3.} 25. Nd4 {[%emt 0:00:00]} ({Avoid the trap} 25. exd6 $2 Bxf3 26. gxf3 Kh8 $19) ({Better is} 25. Bd1 $1 $16) 25... Bxd4 $11 {[%emt 0:03:45] The position is equal.} 26. Qxd4 {[%emt 0:00:00]} d5 {[%emt 0:03:46]} 27. Nd2 {[%emt 0:00:00] Black must now prevent Re1.} f3 {[%emt 0:00:41]} 28. gxf3 {[%emt 0:00:53]} Qxh3 {[%emt 0:00:33][%cal Og8h8] [#] Threatens to win with ...Kh8!} 29. fxe4 {[%emt 0:00:56]} Kh8 {[%emt 0:01:06][%cal Rf8g8]} 30. e6+ {[%emt 0:00:05]} f6 {[%emt 0:00:03][%cal Rf8g8]} 31. f4 $1 {[%emt 0:00:15]} Qg3+ {[%emt 0:00:04]} 32. Kh1 {[%emt 0:00:04]} Qh3+ {[%emt 0:00:02]} 33. Kg1 {[%emt 0:00:06]} Qg3+ {[%emt 0:01:49]} 34. Kh1 {[%emt 0:00:05]} Qh3+ {[%emt 0:00:11] Weighted Error Value: White=0.22 (precise) /Black=0.11 (very precise)} 1/2-1/2